[Event "Meltwater Champions Chess Tour 2022: Chessable Masters | Prelims"]
[White "Mishra, Abhimanyu"]
[Black "Shankland, Sam"]
[WhiteFideId "30920019"]
[BlackFideId "2004887"]
[WhiteElo "2524"]
[BlackElo "2616"]
[Result "0-1"]
[Round "07"]
[TimeControl "900+10"]
[Date "2022.05.20"]
[WhiteClock "0:00:21"]
[BlackClock "0:04:55"]

1. e4 {[%clk 0:15:20]}  e5 {[%clk 0:15:20]} 2. Nf3 {[%clk 0:15:28]}  Nc6 {[%clk 0:15:29]} 3. Bc4 {[%clk 0:15:37]}  Bc5 {[%clk 0:15:38]} 4. c3 {[%clk 0:15:46]}  Nf6 {[%clk 0:15:46]} 5. d3 {[%clk 0:15:55]}  d6 {[%clk 0:15:54]} 6. O-O {[%clk 0:16:04]}  a6 {[%clk 0:15:59]} 7. a4 {[%clk 0:15:51]}  h6 {[%clk 0:16:06]} 8. Re1 {[%clk 0:15:38]}  Ba7 {[%clk 0:16:13]} 9. Nbd2 {[%clk 0:15:38]}  Be6 {[%clk 0:16:22]} 10. Bxe6 {[%clk 0:14:54]}  fxe6 {[%clk 0:16:30]} 11. Nf1 {[%clk 0:14:35]}  a5 {[%clk 0:16:37]} 12. Be3 {[%clk 0:14:33]}  Bxe3 {[%clk 0:16:44]} 13. Nxe3 {[%clk 0:14:03]}  O-O {[%clk 0:16:27]} 14. Qb3 {[%clk 0:13:46]}  Qd7 {[%clk 0:16:07]} 15. Qb5 {[%clk 0:12:50]}  b6 {[%clk 0:12:52]} 16. Rad1 {[%clk 0:11:40]}  Rf7 {[%clk 0:12:46]} 17. Nf1 {[%clk 0:10:01]}  Raf8 {[%clk 0:11:40]} 18. d4 {[%clk 0:09:12]}  exd4 {[%clk 0:11:08]} 19. Nxd4 {[%clk 0:08:55]}  Nxd4 {[%clk 0:11:03]} 20. cxd4 {[%clk 0:08:42]}  d5 {[%clk 0:08:39]} 21. exd5 {[%clk 0:06:49]}  Qxb5 {[%clk 0:08:07]} 22. axb5 {[%clk 0:06:57]}  Nxd5 {[%clk 0:08:16]} 23. f3 {[%clk 0:06:12]}  Re7 {[%clk 0:07:38]} 24. Ne3 {[%clk 0:04:39]}  Nxe3 {[%clk 0:06:12]} 25. Rxe3 {[%clk 0:04:49]}  Rf5 {[%clk 0:06:09]} 26. Re5 {[%clk 0:03:40]}  Rd7 {[%clk 0:05:49]} 27. Rxf5 {[%clk 0:02:24]}  exf5 {[%clk 0:05:57]} 28. d5 {[%clk 0:02:33]}  Kf7 {[%clk 0:06:05]} 29. Kf2 {[%clk 0:02:28]}  Ke7 {[%clk 0:06:14]} 30. Ke3 {[%clk 0:02:12]}  Kd6 {[%clk 0:06:22]} 31. Kd4 {[%clk 0:01:58]}  Re7 {[%clk 0:06:31]} 32. Rc1 {[%clk 0:01:58]}  Re2 {[%clk 0:06:39]} 33. Rc6+ {[%clk 0:02:05]}  Kd7 {[%clk 0:06:49]} 34. Rg6 {[%clk 0:02:04]}  Rxb2 {[%clk 0:06:56]} 35. Rxg7+ {[%clk 0:02:11]}  Kc8 {[%clk 0:07:05]} 36. d6 {[%clk 0:01:35]}  Rd2+ {[%clk 0:06:52]} 37. Ke5 {[%clk 0:01:09]}  Rxd6 {[%clk 0:06:59]} 38. Kxf5 {[%clk 0:01:16]}  Rd5+ {[%clk 0:05:53]} 39. Ke6 {[%clk 0:00:58]}  Rxb5 {[%clk 0:05:59]} 40. f4 {[%clk 0:00:56]}  a4 {[%clk 0:05:56]} 41. Rg3 {[%clk 0:00:35]}  Rb3 {[%clk 0:04:29]} 42. Rg8+ {[%clk 0:00:21]}  Kb7 {[%clk 0:04:37]} 43. Rd8 {[%clk 0:00:25]}  Re3+ {[%clk 0:04:36]} 44. Kf6 {[%clk 0:00:23]}  a3 {[%clk 0:04:33]} 45. g4 {[%clk 0:00:16]}  b5 {[%clk 0:04:32]} 46. g5 {[%clk 0:00:18]}  hxg5 {[%clk 0:04:41]} 47. fxg5 {[%clk 0:00:27]}  a2 {[%clk 0:04:32]} 48. Rd1 {[%clk 0:00:35]}  b4 {[%clk 0:04:32]} 49. g6 {[%clk 0:00:39]}  b3 {[%clk 0:04:17]} 50. g7 {[%clk 0:00:29]}  Re8 {[%clk 0:04:24]} 51. Kf7 {[%clk 0:00:23]}  Ra8 {[%clk 0:04:28]} 52. Ra1 {[%clk 0:00:20]}  b2 {[%clk 0:04:21]} 53. Rxa2 {[%clk 0:00:28]}  Rxa2 {[%clk 0:04:30]} 54. g8=Q {[%clk 0:00:36]}  b1=Q {[%clk 0:04:39]} 55. Qg5 {[%clk 0:00:26]}  Qf1+ {[%clk 0:04:42]} 56. Ke6 {[%clk 0:00:24]}  Re2+ {[%clk 0:04:47]} 57. Kd5 {[%clk 0:00:21]}  Qd1+ {[%clk 0:04:55]} 0-1


[Site "http://www.chessbomb.com"]

[Event "Meltwater Champions Chess Tour 2022: Chessable Masters | Prelims"]
[White "Vidit, Santosh Gujrathi"]
[Black "Mishra, Abhimanyu"]
[WhiteFideId "5029465"]
[BlackFideId "30920019"]
[WhiteElo "2617"]
[BlackElo "2524"]
[Result "1-0"]
[Round "08"]
[TimeControl "900+10"]
[Date "2022.05.20"]
[WhiteClock "0:01:19"]
[BlackClock "0:00:28"]

1. d4 {[%clk 0:15:20]}  d5 {[%clk 0:15:20]} 2. c4 {[%clk 0:15:29]}  c6 {[%clk 0:15:28]} 3. Nf3 {[%clk 0:15:38]}  Nf6 {[%clk 0:15:37]} 4. e3 {[%clk 0:15:47]}  e6 {[%clk 0:15:46]} 5. Bd3 {[%clk 0:15:56]}  dxc4 {[%clk 0:15:55]} 6. Bxc4 {[%clk 0:16:06]}  Nbd7 {[%clk 0:16:04]} 7. O-O {[%clk 0:16:13]}  Bd6 {[%clk 0:16:13]} 8. Qc2 {[%clk 0:16:19]}  O-O {[%clk 0:16:21]} 9. e4 {[%clk 0:16:28]}  e5 {[%clk 0:16:29]} 10. Be3 {[%clk 0:16:36]}  Ng4 {[%clk 0:16:30]} 11. Bg5 {[%clk 0:16:43]}  Qc7 {[%clk 0:16:39]} 12. h3 {[%clk 0:16:41]}  h6 {[%clk 0:16:48]} 13. Bh4 {[%clk 0:16:48]}  Ngf6 {[%clk 0:16:52]} 14. Nc3 {[%clk 0:16:56]}  Nh5 {[%clk 0:16:50]} 15. Rad1 {[%clk 0:17:00]}  b5 {[%clk 0:16:58]} 16. Be2 {[%clk 0:16:17]}  Nf4 {[%clk 0:16:18]} 17. Bg3 {[%clk 0:14:30]}  exd4 {[%clk 0:16:24]} 18. Nxd4 {[%clk 0:14:19]}  b4 {[%clk 0:14:29]} 19. Nf5 {[%clk 0:11:04]}  Nxh3+ {[%clk 0:13:24]} 20. gxh3 {[%clk 0:11:01]}  Bxg3 {[%clk 0:13:33]} 21. Nxg3 {[%clk 0:09:43]}  bxc3 {[%clk 0:13:40]} 22. Qxc3 {[%clk 0:09:52]}  Qe5 {[%clk 0:12:03]} 23. Qxe5 {[%clk 0:08:33]}  Nxe5 {[%clk 0:12:13]} 24. f4 {[%clk 0:08:42]}  Ng6 {[%clk 0:07:50]} 25. Kh2 {[%clk 0:08:47]}  Ne7 {[%clk 0:07:15]} 26. f5 {[%clk 0:08:28]}  Rb8 {[%clk 0:06:38]} 27. b3 {[%clk 0:08:34]}  c5 {[%clk 0:05:27]} 28. Bc4 {[%clk 0:04:23]}  Nc6 {[%clk 0:04:37]} 29. Rd5 {[%clk 0:04:30]}  Rd8 {[%clk 0:03:47]} 30. Rxd8+ {[%clk 0:03:35]}  Nxd8 {[%clk 0:03:55]} 31. Rd1 {[%clk 0:02:43]}  Nc6 {[%clk 0:03:18]} 32. Rd5 {[%clk 0:02:52]}  Kf8 {[%clk 0:02:06]} 33. Rxc5 {[%clk 0:02:58]}  Rb6 {[%clk 0:01:58]} 34. Nh5 {[%clk 0:02:25]}  Ba6 {[%clk 0:01:23]} 35. Bd5 {[%clk 0:01:36]}  Nb4 {[%clk 0:00:49]} 36. Nf4 {[%clk 0:01:45]}  Bb7 {[%clk 0:00:24]} 37. Bxb7 {[%clk 0:01:32]}  Rxb7 {[%clk 0:00:34]} 38. a3 {[%clk 0:01:39]}  Na6 {[%clk 0:00:40]} 39. Rc6 {[%clk 0:01:18]}  Nc7 {[%clk 0:00:20]} 40. b4 {[%clk 0:01:20]}  Nb5 {[%clk 0:00:15]} 41. Nd5 {[%clk 0:01:14]}  f6 {[%clk 0:00:14]} 42. a4 {[%clk 0:01:13]}  Nd4 {[%clk 0:00:22]} 43. Rc8+ {[%clk 0:00:39]}  Kf7 {[%clk 0:00:31]} 44. Kg3 {[%clk 0:00:40]}  g6 {[%clk 0:00:23]} 45. Rc4 {[%clk 0:00:46]}  Nb3 {[%clk 0:00:25]} 46. fxg6+ {[%clk 0:00:28]}  Kxg6 {[%clk 0:00:33]} 47. Rc6 {[%clk 0:00:37]}  Kg7 {[%clk 0:00:18]} 48. b5 {[%clk 0:00:24]}  Rf7 {[%clk 0:00:17]} 49. Kf4 {[%clk 0:00:22]}  Nd4 {[%clk 0:00:23]} 50. Rd6 {[%clk 0:00:28]}  Nb3 {[%clk 0:00:20]} 51. Ke3 {[%clk 0:00:30]}  Rb7 {[%clk 0:00:15]} 52. Rc6 {[%clk 0:00:24]}  Rf7 {[%clk 0:00:14]} 53. Rc3 {[%clk 0:00:23]}  Na5 {[%clk 0:00:19]} 54. Kd4 {[%clk 0:00:31]}  Rd7 {[%clk 0:00:22]} 55. Rg3+ {[%clk 0:00:30]}  Kf7 {[%clk 0:00:23]} 56. Rf3 {[%clk 0:00:39]}  Kg7 {[%clk 0:00:23]} 57. Kc5 {[%clk 0:00:43]}  Nb7+ {[%clk 0:00:21]} 58. Kb4 {[%clk 0:00:50]}  f5 {[%clk 0:00:16]} 59. Rxf5 {[%clk 0:00:55]}  Nd6 {[%clk 0:00:25]} 60. Rf4 {[%clk 0:00:54]}  Rd8 {[%clk 0:00:19]} 61. Nc7 {[%clk 0:00:51]}  Rc8 {[%clk 0:00:20]} 62. e5 {[%clk 0:00:57]}  Nf7 {[%clk 0:00:23]} 63. e6 {[%clk 0:00:51]}  Nd6 {[%clk 0:00:28]} 64. Rd4 {[%clk 0:00:43]}  Rxc7 {[%clk 0:00:30]} 65. Rxd6 {[%clk 0:00:52]}  Kf6 {[%clk 0:00:38]} 66. Rd7 {[%clk 0:00:54]}  Rc1 {[%clk 0:00:35]} 67. e7 {[%clk 0:01:03]}  Kf7 {[%clk 0:00:39]} 68. Rxa7 {[%clk 0:01:11]}  Rh1 {[%clk 0:00:28]} 69. b6 {[%clk 0:01:19]} 1-0


[Site "http://www.chessbomb.com"]

[Event "Meltwater Champions Chess Tour 2022: Chessable Masters | Prelims"]
[White "Wei, Yi"]
[Black "Van Foreest, Jorden"]
[WhiteFideId "8603405"]
[BlackFideId "1039784"]
[WhiteElo "2752"]
[BlackElo "2645"]
[Result "1-0"]
[Round "08"]
[TimeControl "900+10"]
[Date "2022.05.20"]
[WhiteClock "0:00:26"]
[BlackClock "0:00:51"]

1. d4 {[%clk 0:15:20]}  d5 {[%clk 0:15:20]} 2. c4 {[%clk 0:15:21]}  dxc4 {[%clk 0:15:26]} 3. Nf3 {[%clk 0:15:12]}  Nf6 {[%clk 0:15:33]} 4. e3 {[%clk 0:15:21]}  e6 {[%clk 0:15:41]} 5. Bxc4 {[%clk 0:15:30]}  c5 {[%clk 0:15:48]} 6. O-O {[%clk 0:15:38]}  a6 {[%clk 0:15:56]} 7. Nbd2 {[%clk 0:14:59]}  cxd4 {[%clk 0:16:01]} 8. Nxd4 {[%clk 0:15:07]}  Be7 {[%clk 0:15:54]} 9. b3 {[%clk 0:14:46]}  Bd7 {[%clk 0:15:36]} 10. Bb2 {[%clk 0:14:07]}  Nc6 {[%clk 0:15:37]} 11. N2f3 {[%clk 0:13:26]}  O-O {[%clk 0:15:19]} 12. Qb1 {[%clk 0:12:59]}  Nxd4 {[%clk 0:15:17]} 13. Bxd4 {[%clk 0:13:05]}  Bb5 {[%clk 0:13:43]} 14. Bxb5 {[%clk 0:12:14]}  axb5 {[%clk 0:13:51]} 15. Rd1 {[%clk 0:12:11]}  Qe8 {[%clk 0:12:50]} 16. Qb2 {[%clk 0:10:31]}  Qc6 {[%clk 0:12:18]} 17. Ne5 {[%clk 0:09:11]}  Qa6 {[%clk 0:12:23]} 18. a4 {[%clk 0:09:08]}  Rfc8 {[%clk 0:11:37]} 19. a5 {[%clk 0:08:11]}  Qd6 {[%clk 0:10:46]} 20. Qe2 {[%clk 0:05:42]}  Qd5 {[%clk 0:06:26]} 21. Rab1 {[%clk 0:04:07]}  b4 {[%clk 0:04:51]} 22. Nxf7 {[%clk 0:04:16]}  Qxa5 {[%clk 0:04:52]} 23. Ne5 {[%clk 0:03:54]}  Qa6 {[%clk 0:04:47]} 24. Qf3 {[%clk 0:03:45]}  Rf8 {[%clk 0:04:36]} 25. Ra1 {[%clk 0:02:06]}  Qb5 {[%clk 0:04:43]} 26. Qh3 {[%clk 0:02:03]}  Qd5 {[%clk 0:04:27]} 27. Rab1 {[%clk 0:02:09]}  Rfd8 {[%clk 0:03:44]} 28. Nd3 {[%clk 0:00:27]}  Qf5 {[%clk 0:03:34]} 29. Qxf5 {[%clk 0:00:33]}  exf5 {[%clk 0:03:44]} 30. Bxf6 {[%clk 0:00:41]}  gxf6 {[%clk 0:03:20]} 31. Kf1 {[%clk 0:00:38]}  Kf7 {[%clk 0:03:02]} 32. Ke2 {[%clk 0:00:39]}  Bd6 {[%clk 0:03:00]} 33. Rd2 {[%clk 0:00:31]}  Ke6 {[%clk 0:02:30]} 34. g3 {[%clk 0:00:38]}  Rdc8 {[%clk 0:02:33]} 35. Kf3 {[%clk 0:00:42]}  Rc3 {[%clk 0:02:38]} 36. Nc1 {[%clk 0:00:37]}  Be5 {[%clk 0:02:34]} 37. Ne2 {[%clk 0:00:44]}  b5 {[%clk 0:02:09]} 38. Nd4+ {[%clk 0:00:43]}  Bxd4 {[%clk 0:01:56]} 39. Rxd4 {[%clk 0:00:53]}  Ra2 {[%clk 0:01:59]} 40. Rxb4 {[%clk 0:01:01]}  Rcc2 {[%clk 0:02:08]} 41. Rf1 {[%clk 0:01:11]}  Rc5 {[%clk 0:01:41]} 42. Rh4 {[%clk 0:01:19]}  Rc3 {[%clk 0:01:49]} 43. Rb4 {[%clk 0:01:22]}  Rb2 {[%clk 0:01:30]} 44. Rh4 {[%clk 0:00:37]}  Rbxb3 {[%clk 0:01:27]} 45. Rxh7 {[%clk 0:00:43]}  Rc2 {[%clk 0:00:16]} 46. Rb7 {[%clk 0:00:37]}  b4 {[%clk 0:00:23]} 47. h4 {[%clk 0:00:42]}  Rbb2 {[%clk 0:00:31]} 48. h5 {[%clk 0:00:41]}  b3 {[%clk 0:00:35]} 49. h6 {[%clk 0:00:39]}  Rc8 {[%clk 0:00:43]} 50. h7 {[%clk 0:00:33]}  Rh8 {[%clk 0:00:52]} 51. Rh1 {[%clk 0:00:22]}  Rd2 {[%clk 0:00:41]} 52. Rxb3 {[%clk 0:00:25]}  Rd7 {[%clk 0:00:50]} 53. Rb6+ {[%clk 0:00:31]}  Ke5 {[%clk 0:00:59]} 54. Rb5+ {[%clk 0:00:29]}  Ke6 {[%clk 0:00:51]} 55. Kf4 {[%clk 0:00:26]} 1-0


[Site "http://www.chessbomb.com"]

[Event "Meltwater Champions Chess Tour 2022: Chessable Masters | Prelims"]
[White "Giri, Anish"]
[Black "Mamedyarov, Shakhriyar"]
[WhiteFideId "24116068"]
[BlackFideId "13401319"]
[WhiteElo "2730"]
[BlackElo "2699"]
[Result "1/2-1/2"]
[Round "08"]
[TimeControl "900+10"]
[Date "2022.05.20"]
[WhiteClock "0:08:38"]
[BlackClock "0:12:09"]

1. Nf3 {[%clk 0:15:20]}  Nf6 {[%clk 0:15:20]} 2. c4 {[%clk 0:15:28]}  e6 {[%clk 0:15:29]} 3. g3 {[%clk 0:15:30]}  d5 {[%clk 0:15:37]} 4. d4 {[%clk 0:15:38]}  Be7 {[%clk 0:15:42]} 5. Bg2 {[%clk 0:15:47]}  O-O {[%clk 0:15:51]} 6. O-O {[%clk 0:15:46]}  dxc4 {[%clk 0:16:00]} 7. Qc2 {[%clk 0:15:48]}  b6 {[%clk 0:16:09]} 8. Bg5 {[%clk 0:15:38]}  Nd5 {[%clk 0:15:59]} 9. Bxe7 {[%clk 0:15:42]}  Qxe7 {[%clk 0:16:09]} 10. Ne5 {[%clk 0:14:11]}  c5 {[%clk 0:15:31]} 11. dxc5 {[%clk 0:13:57]}  Qxc5 {[%clk 0:15:19]} 12. Qxc4 {[%clk 0:13:56]}  Qxc4 {[%clk 0:12:04]} 13. Nxc4 {[%clk 0:14:05]}  Nc6 {[%clk 0:11:39]} 14. Nc3 {[%clk 0:10:49]}  Ba6 {[%clk 0:11:05]} 15. Nxd5 {[%clk 0:10:48]}  exd5 {[%clk 0:11:11]} 16. Bxd5 {[%clk 0:08:09]}  Rad8 {[%clk 0:11:01]} 17. Bxc6 {[%clk 0:07:26]}  Bxc4 {[%clk 0:11:08]} 18. Bf3 {[%clk 0:07:25]}  Rd2 {[%clk 0:11:16]} 19. b3 {[%clk 0:07:35]}  Bxe2 {[%clk 0:11:24]} 20. Bxe2 {[%clk 0:07:45]}  Rxe2 {[%clk 0:11:34]} 21. Rfe1 {[%clk 0:07:55]}  Rxe1+ {[%clk 0:11:23]} 22. Rxe1 {[%clk 0:08:03]}  f6 {[%clk 0:11:32]} 23. Re7 {[%clk 0:07:59]}  Rf7 {[%clk 0:11:41]} 24. Re8+ {[%clk 0:08:09]}  Rf8 {[%clk 0:11:50]} 25. Re7 {[%clk 0:08:19]}  Rf7 {[%clk 0:12:00]} 26. Re8+ {[%clk 0:08:28]}  Rf8 {[%clk 0:12:09]} 27. Re7 {[%clk 0:08:38]} 1/2-1/2


[Site "http://www.chessbomb.com"]

[Event "Meltwater Champions Chess Tour 2022: Chessable Masters | Prelims"]
[White "Tari, Aryan"]
[Black "Hansen, Eric"]
[WhiteFideId "1510045"]
[BlackFideId "2606771"]
[WhiteElo "2531"]
[BlackElo "2579"]
[Result "1/2-1/2"]
[Round "08"]
[TimeControl "900+10"]
[Date "2022.05.20"]
[WhiteClock "0:00:35"]
[BlackClock "0:01:35"]

1. e4 {[%clk 0:15:20]}  d6 {[%clk 0:15:20]} 2. d4 {[%clk 0:15:26]}  Nf6 {[%clk 0:15:29]} 3. Nc3 {[%clk 0:15:34]}  e5 {[%clk 0:15:36]} 4. Nf3 {[%clk 0:15:27]}  Nbd7 {[%clk 0:15:45]} 5. Rg1 {[%clk 0:15:32]}  exd4 {[%clk 0:15:00]} 6. Nxd4 {[%clk 0:15:36]}  Nc5 {[%clk 0:14:32]} 7. Qf3 {[%clk 0:14:42]}  Be7 {[%clk 0:14:31]} 8. g4 {[%clk 0:14:20]}  h5 {[%clk 0:11:29]} 9. h3 {[%clk 0:13:30]}  hxg4 {[%clk 0:11:33]} 10. hxg4 {[%clk 0:13:37]}  Nfd7 {[%clk 0:09:33]} 11. g5 {[%clk 0:10:30]}  Ne5 {[%clk 0:08:52]} 12. Qe2 {[%clk 0:09:37]}  Nc6 {[%clk 0:06:57]} 13. Nxc6 {[%clk 0:08:38]}  bxc6 {[%clk 0:07:04]} 14. Be3 {[%clk 0:08:48]}  Ba6 {[%clk 0:07:07]} 15. Qd2 {[%clk 0:08:55]}  Bxf1 {[%clk 0:07:11]} 16. Rxf1 {[%clk 0:08:59]}  Qd7 {[%clk 0:03:43]} 17. O-O-O {[%clk 0:08:56]}  Qe6 {[%clk 0:03:39]} 18. Qd4 {[%clk 0:06:10]}  Qe5 {[%clk 0:03:27]} 19. Qc4 {[%clk 0:06:10]}  Qe6 {[%clk 0:03:32]} 20. Qd4 {[%clk 0:04:51]}  Qe5 {[%clk 0:03:39]} 21. Qb4 {[%clk 0:04:51]}  a5 {[%clk 0:03:35]} 22. Qa3 {[%clk 0:05:00]}  Qe6 {[%clk 0:00:48]} 23. f4 {[%clk 0:04:02]}  Rh3 {[%clk 0:00:52]} 24. Bxc5 {[%clk 0:03:58]}  dxc5 {[%clk 0:01:00]} 25. Qa4 {[%clk 0:04:02]}  Kf8 {[%clk 0:01:04]} 26. e5 {[%clk 0:03:06]}  c4 {[%clk 0:01:00]} 27. a3 {[%clk 0:03:10]}  Bc5 {[%clk 0:00:40]} 28. Kb1 {[%clk 0:02:38]}  Kg8 {[%clk 0:00:41]} 29. Ka2 {[%clk 0:02:36]}  Rh2 {[%clk 0:00:38]} 30. f5 {[%clk 0:01:32]}  Qxe5 {[%clk 0:00:47]} 31. Qxc6 {[%clk 0:01:42]}  Rb8 {[%clk 0:00:56]} 32. Rd5 {[%clk 0:01:33]}  Rxb2+ {[%clk 0:00:46]} 33. Kxb2 {[%clk 0:01:43]}  Bxa3+ {[%clk 0:00:55]} 34. Kb1 {[%clk 0:01:34]}  Qxc3 {[%clk 0:01:00]} 35. Rd8+ {[%clk 0:01:18]}  Bf8 {[%clk 0:00:47]} 36. Rxf8+ {[%clk 0:00:47]}  Kxf8 {[%clk 0:00:57]} 37. Qa8+ {[%clk 0:00:56]}  Ke7 {[%clk 0:01:07]} 38. f6+ {[%clk 0:01:05]}  gxf6 {[%clk 0:01:13]} 39. gxf6+ {[%clk 0:01:14]}  Kd7 {[%clk 0:01:00]} 40. Qd5+ {[%clk 0:00:32]}  Kc8 {[%clk 0:01:08]} 41. Qa8+ {[%clk 0:00:36]}  Kd7 {[%clk 0:01:17]} 42. Qd5+ {[%clk 0:00:35]}  Kc8 {[%clk 0:01:26]} 43. Qa8+ {[%clk 0:00:35]}  Kd7 {[%clk 0:01:35]} 1/2-1/2


[Site "http://www.chessbomb.com"]

[Event "Meltwater Champions Chess Tour 2022: Chessable Masters | Prelims"]
[White "Grandelius, Nils"]
[Black "Ding, Liren"]
[WhiteFideId "1710400"]
[BlackFideId "8603677"]
[WhiteElo "2652"]
[BlackElo "2836"]
[Result "1/2-1/2"]
[Round "08"]
[TimeControl "900+10"]
[Date "2022.05.20"]
[WhiteClock "0:00:40"]
[BlackClock "0:02:18"]

1. e4 {[%clk 0:15:20]}  e5 {[%clk 0:15:20]} 2. Nf3 {[%clk 0:15:28]}  Nc6 {[%clk 0:15:29]} 3. Bb5 {[%clk 0:15:37]}  a6 {[%clk 0:15:38]} 4. Ba4 {[%clk 0:15:46]}  Nf6 {[%clk 0:15:47]} 5. O-O {[%clk 0:15:54]}  Be7 {[%clk 0:15:57]} 6. d3 {[%clk 0:16:02]}  b5 {[%clk 0:16:04]} 7. Bb3 {[%clk 0:16:11]}  d6 {[%clk 0:16:14]} 8. c3 {[%clk 0:16:08]}  O-O {[%clk 0:16:18]} 9. a4 {[%clk 0:16:17]}  Bd7 {[%clk 0:15:44]} 10. Bc2 {[%clk 0:16:23]}  Re8 {[%clk 0:15:52]} 11. Re1 {[%clk 0:16:25]}  h6 {[%clk 0:16:00]} 12. Nbd2 {[%clk 0:16:33]}  Bf8 {[%clk 0:16:09]} 13. h3 {[%clk 0:16:32]}  Rb8 {[%clk 0:16:04]} 14. axb5 {[%clk 0:16:30]}  axb5 {[%clk 0:16:14]} 15. Nf1 {[%clk 0:16:35]}  Ne7 {[%clk 0:15:53]} 16. d4 {[%clk 0:16:12]}  Ng6 {[%clk 0:16:01]} 17. Ng3 {[%clk 0:16:06]}  c5 {[%clk 0:14:22]} 18. Be3 {[%clk 0:12:55]}  Qc7 {[%clk 0:14:26]} 19. Qd2 {[%clk 0:12:58]}  Ra8 {[%clk 0:14:31]} 20. Red1 {[%clk 0:11:21]}  Bc6 {[%clk 0:11:37]} 21. d5 {[%clk 0:11:18]}  Bd7 {[%clk 0:11:46]} 22. b4 {[%clk 0:11:28]}  c4 {[%clk 0:11:52]} 23. Rdb1 {[%clk 0:09:43]}  Be7 {[%clk 0:11:53]} 24. Qc1 {[%clk 0:09:47]}  Qb7 {[%clk 0:11:54]} 25. Rb2 {[%clk 0:09:14]}  Rxa1 {[%clk 0:11:47]} 26. Qxa1 {[%clk 0:09:24]}  Ra8 {[%clk 0:11:56]} 27. Ra2 {[%clk 0:09:33]}  Rxa2 {[%clk 0:12:06]} 28. Qxa2 {[%clk 0:09:43]}  Bd8 {[%clk 0:12:15]} 29. Qa7 {[%clk 0:09:47]}  Qxa7 {[%clk 0:12:24]} 30. Bxa7 {[%clk 0:09:57]}  Nf4 {[%clk 0:12:23]} 31. Kf1 {[%clk 0:08:11]}  g6 {[%clk 0:12:20]} 32. Ne2 {[%clk 0:07:46]}  N6h5 {[%clk 0:11:29]} 33. Nxf4 {[%clk 0:06:47]}  Nxf4 {[%clk 0:11:39]} 34. Be3 {[%clk 0:06:55]}  Kg7 {[%clk 0:11:31]} 35. Ng1 {[%clk 0:05:35]}  f5 {[%clk 0:09:57]} 36. f3 {[%clk 0:05:35]}  fxe4 {[%clk 0:08:49]} 37. fxe4 {[%clk 0:05:34]}  h5 {[%clk 0:08:33]} 38. Ne2 {[%clk 0:04:45]}  g5 {[%clk 0:08:40]} 39. Bd1 {[%clk 0:03:47]}  h4 {[%clk 0:07:36]} 40. Ng1 {[%clk 0:02:54]}  Be8 {[%clk 0:07:45]} 41. Nf3 {[%clk 0:01:32]}  Bh5 {[%clk 0:07:51]} 42. Nxg5 {[%clk 0:00:24]}  Bxd1 {[%clk 0:05:34]} 43. Bxf4 {[%clk 0:00:32]}  Kg6 {[%clk 0:05:44]} 44. Ne6 {[%clk 0:00:36]}  Be7 {[%clk 0:05:46]} 45. Be3 {[%clk 0:00:26]}  Bc2 {[%clk 0:05:54]} 46. Kf2 {[%clk 0:00:17]}  Bxe4 {[%clk 0:06:01]} 47. Nc7 {[%clk 0:00:26]}  Kf5 {[%clk 0:05:17]} 48. Ba7 {[%clk 0:00:35]}  Bf8 {[%clk 0:02:11]} 49. Nxb5 {[%clk 0:00:37]}  Bxd5 {[%clk 0:02:19]} 50. Bb8 {[%clk 0:00:44]}  Ke4 {[%clk 0:02:06]} 51. Nxd6+ {[%clk 0:00:38]}  Kd3 {[%clk 0:02:08]} 52. Nxc4 {[%clk 0:00:28]}  Bxc4 {[%clk 0:01:53]} 53. Bxe5 {[%clk 0:00:36]}  Bh6 {[%clk 0:02:02]} 54. g3 {[%clk 0:00:31]}  Be3+ {[%clk 0:02:09]} 55. Kf3 {[%clk 0:00:30]}  Bd5+ {[%clk 0:02:18]} 56. Kg4 {[%clk 0:00:40]} 1/2-1/2


[Site "http://www.chessbomb.com"]

[Event "Meltwater Champions Chess Tour 2022: Chessable Masters | Prelims"]
[White "Praggnanandhaa, R"]
[Black "Anton Guijarro, David"]
[WhiteFideId "25059530"]
[BlackFideId "2285525"]
[WhiteElo "1927"]
[BlackElo "2633"]
[Result "0-1"]
[Round "08"]
[TimeControl "900+10"]
[Date "2022.05.20"]
[WhiteClock "0:00:03"]
[BlackClock "0:00:38"]

1. e4 {[%clk 0:15:20]}  e5 {[%clk 0:15:20]} 2. Nf3 {[%clk 0:15:28]}  Nc6 {[%clk 0:15:28]} 3. Bb5 {[%clk 0:15:38]}  a6 {[%clk 0:15:37]} 4. Ba4 {[%clk 0:15:47]}  Nf6 {[%clk 0:15:45]} 5. d3 {[%clk 0:15:55]}  Bc5 {[%clk 0:15:51]} 6. c3 {[%clk 0:16:04]}  d6 {[%clk 0:15:58]} 7. O-O {[%clk 0:16:12]}  Ba7 {[%clk 0:15:55]} 8. Re1 {[%clk 0:16:03]}  O-O {[%clk 0:15:56]} 9. h3 {[%clk 0:16:11]}  h6 {[%clk 0:15:46]} 10. Nbd2 {[%clk 0:14:41]}  Ne7 {[%clk 0:15:36]} 11. Nf1 {[%clk 0:14:28]}  Ng6 {[%clk 0:15:30]} 12. Ng3 {[%clk 0:14:34]}  c5 {[%clk 0:15:05]} 13. Bc2 {[%clk 0:13:21]}  d5 {[%clk 0:12:25]} 14. exd5 {[%clk 0:13:00]}  Qxd5 {[%clk 0:12:32]} 15. Bb3 {[%clk 0:08:37]}  Qd6 {[%clk 0:12:34]} 16. Qe2 {[%clk 0:08:36]}  Re8 {[%clk 0:11:39]} 17. Ne4 {[%clk 0:08:05]}  Qc6 {[%clk 0:11:24]} 18. Nxf6+ {[%clk 0:06:58]}  Qxf6 {[%clk 0:11:29]} 19. Bd5 {[%clk 0:06:39]}  Rb8 {[%clk 0:09:17]} 20. Be3 {[%clk 0:04:48]}  Bd7 {[%clk 0:06:44]} 21. Nd2 {[%clk 0:04:03]}  Qd6 {[%clk 0:04:55]} 22. Qf3 {[%clk 0:03:37]}  Be6 {[%clk 0:04:06]} 23. Bxe6 {[%clk 0:03:45]}  Rxe6 {[%clk 0:03:33]} 24. Ne4 {[%clk 0:02:27]}  Qxd3 {[%clk 0:02:47]} 25. Rad1 {[%clk 0:02:32]}  Qb5 {[%clk 0:02:32]} 26. b4 {[%clk 0:02:27]}  b6 {[%clk 0:01:49]} 27. bxc5 {[%clk 0:01:58]}  bxc5 {[%clk 0:01:56]} 28. Rd5 {[%clk 0:01:46]}  Nf4 {[%clk 0:01:06]} 29. Bxf4 {[%clk 0:01:19]}  exf4 {[%clk 0:01:16]} 30. Red1 {[%clk 0:01:25]}  Rf8 {[%clk 0:01:01]} 31. Rd8 {[%clk 0:00:21]}  Qc6 {[%clk 0:00:33]} 32. R1d5 {[%clk 0:00:12]}  Rxd8 {[%clk 0:00:20]} 33. Rxd8+ {[%clk 0:00:22]}  Kh7 {[%clk 0:00:29]} 34. Rd5 {[%clk 0:00:16]}  f5 {[%clk 0:00:18]} 35. Nd2 {[%clk 0:00:18]}  c4 {[%clk 0:00:26]} 36. Rxf5 {[%clk 0:00:16]}  Re1+ {[%clk 0:00:25]} 37. Kh2 {[%clk 0:00:22]}  Qxf3 {[%clk 0:00:28]} 38. Nxf3 {[%clk 0:00:31]}  Re2 {[%clk 0:00:25]} 39. Rf7 {[%clk 0:00:24]}  Bb6 {[%clk 0:00:30]} 40. a4 {[%clk 0:00:15]}  Rxf2 {[%clk 0:00:34]} 41. h4 {[%clk 0:00:16]}  Rc2 {[%clk 0:00:33]} 42. h5 {[%clk 0:00:17]}  Rxc3 {[%clk 0:00:38]} 43. Kh3 {[%clk 0:00:15]}  Rd3 {[%clk 0:00:36]} 44. Rxf4 {[%clk 0:00:21]}  c3 {[%clk 0:00:35]} 45. Rc4 {[%clk 0:00:30]}  Rd5 {[%clk 0:00:34]} 46. Rxc3 {[%clk 0:00:29]}  Rxh5+ {[%clk 0:00:42]} 47. Kg4 {[%clk 0:00:39]}  Ra5 {[%clk 0:00:24]} 48. Rc4 {[%clk 0:00:46]}  Bd8 {[%clk 0:00:31]} 49. Kf4 {[%clk 0:00:14]}  Bf6 {[%clk 0:00:36]} 50. g4 {[%clk 0:00:18]}  Kg6 {[%clk 0:00:43]} 51. Kg3 {[%clk 0:00:24]}  Kf7 {[%clk 0:00:48]} 52. Kf4 {[%clk 0:00:27]}  Ke6 {[%clk 0:00:54]} 53. Ke4 {[%clk 0:00:32]}  Kd6 {[%clk 0:01:00]} 54. Nd2 {[%clk 0:00:28]}  Rc5 {[%clk 0:00:52]} 55. Kd3 {[%clk 0:00:13]}  Rxc4 {[%clk 0:00:34]} 56. Kxc4 {[%clk 0:00:19]}  Ke5 {[%clk 0:00:43]} 57. Nb3 {[%clk 0:00:24]}  Kf4 {[%clk 0:00:41]} 58. Nc5 {[%clk 0:00:33]}  Kxg4 {[%clk 0:00:48]} 59. Nxa6 {[%clk 0:00:42]}  h5 {[%clk 0:00:51]} 60. Nc5 {[%clk 0:00:27]}  h4 {[%clk 0:00:55]} 61. a5 {[%clk 0:00:24]}  Bd8 {[%clk 0:00:48]} 62. a6 {[%clk 0:00:16]}  Bb6 {[%clk 0:00:57]} 63. Nd7 {[%clk 0:00:15]}  Ba7 {[%clk 0:00:40]} 64. Kd3 {[%clk 0:00:03]}  h3 {[%clk 0:00:38]} 0-1


[Site "http://www.chessbomb.com"]